bitfinex-derivatives/quotes_SOLF0:USTF0_20250228
["timestamp","ask_amount","ask_price","bid_price","bid_amount"]
[1740738687298,0.04963378,130.97,130.95,7.69628867]
[1740738688698,0.04963378,130.97,130.95,0.05548867]
[1740738689494,7.6403,130.96,130.95,0.05548867]
[1740738690696,7.6422,130.93,130.89,7.6442]
[1740738691794,0.05279614,130.92,130.9,0.04857741]
[1740738692702,0.05279614,130.92,130.9,7.69227741]
[1740738693003,0.05279614,130.92,130.9,0.04857741]
[1740738693203,0.05279614,130.92,130.9,7.69187741]
[1740738693605,0.05279614,130.92,130.9,0.04857741]
[1740738694207,0.05279614,130.92,130.9,7.69197741]
[1740738694906,0.05279614,130.92,130.91,7.6432]
[1740738695899,12.64,131.0,130.9,0.04857741]
[1740738696105,12.64,131.0,130.93,7.642]
[1740738696305,12.64,131.0,130.87,3.836]
[1740738696506,7.6407,130.96,130.91,7.6428]
[1740738697201,0.05476477,130.95,130.92,7.69393044]
[1740738697409,0.05476477,130.95,130.92,0.05133044]
[1740738698308,7.69596477,130.95,130.92,0.05133044]
[1740738699905,0.05476477,130.95,130.92,7.69393044]
[1740738700099,0.05476477,130.95,130.92,0.05133044]
[1740738700400,7.69566477,130.95,130.92,0.05133044]
[1740738702911,0.05476477,130.95,130.92,0.05133044]
[1740738703502,7.642,130.93,130.92,0.05133044]
[1740738705202,7.6433,130.91,130.82,338.34162038]
[1740738705407,7.6433,130.91,130.83,5.8649]
[1740738705604,7.6433,130.91,130.87,7.645]
[1740738705807,12.66,130.93,130.83,5.8649]
[1740738706304,0.05632293,130.9,130.88,0.05275378]
[1740738706704,0.05632293,130.9,130.88,7.69775378]
[1740738707519,0.05632293,130.9,130.88,0.05275378]
[1740738709017,0.05632293,130.9,130.88,7.69765378]
[1740738709315,0.05632293,130.9,130.88,0.05275378]
[1740738713619,0.05632293,130.9,130.88,7.69735378]
[1740738715722,0.05632293,130.9,130.89,7.6444]
[1740738717023,10.18,130.92,130.91,7.6432]
[1740738717723,10.18,130.92,130.89,11.6364]
[1740738718124,10.229499,130.92,130.89,11.6364]
[1740738721130,10.229499,130.92,130.9,7.6438]
[1740738721728,10.229499,130.92,130.89,11.6362]
[1740738722629,10.229499,130.92,130.89,3.9921]
[1740738722834,17.872699,130.92,130.89,3.9921]
[1740738725037,17.872699,130.92,130.89,11.6363]
[1740738725341,10.229499,130.92,130.89,11.6363]
[1740738725940,17.872299,130.92,130.89,11.6363]
[1740738726242,10.229499,130.92,130.9,7.6435]
[1740738728943,10.229499,130.92,130.91,7.6432]
[1740738730446,12.75,130.93,130.92,7.6426]
[1740738731139,0.8679,130.93,130.92,7.6426]
[1740738731540,8.51,130.93,130.91,0.0579992]
[1740738731740,0.8679,130.93,130.86,1.9939]
[1740738731943,0.8679,130.93,130.91,0.05134812]
[1740738731944,0.92422431,130.93,130.91,0.05134812]
[1740738732142,0.92422431,130.93,130.9,7.6436]
[1740738732435,0.92422431,130.93,130.91,0.04802675]
[1740738732644,0.92422431,130.93,130.86,1.9939]
[1740738732844,0.92422431,130.93,130.91,0.05516311]
[1740738733045,0.92422431,130.93,130.86,1.9939]
[1740738733343,0.92422431,130.93,130.92,7.6426]
[1740738733741,0.92422431,130.93,130.91,0.05745042]
[1740738735748,0.92422431,130.93,130.91,7.70035042]
[1740738735946,0.92422431,130.93,130.91,0.05745042]
[1740738736347,7.6426,130.92,130.91,0.05745042]
[1740738736940,8.56652431,130.93,130.91,0.05745042]
[1740738737146,0.92422431,130.93,130.91,0.05745042]
[1740738737647,7.6426,130.92,130.91,0.05745042]
[1740738738342,0.92422431,130.93,130.91,0.05745042]
[1740738738939,7.6426,130.92,130.91,0.05745042]
[1740738739139,0.92422431,130.93,130.91,0.05745042]
[1740738739547,8.56662431,130.93,130.91,0.05745042]
[1740738740447,7.6426,130.92,130.91,0.05745042]
[1740738741342,7.69862431,130.93,130.91,0.05745042]
[1740738743350,0.05632431,130.93,130.91,0.05745042]
[1740738743850,0.05632431,130.93,130.92,7.6426]
[1740738745048,8.79,130.97,130.91,0.05745042]
[1740738746242,0.04870466,130.95,130.91,0.05745042]
[1740738747048,0.04870466,130.95,130.94,7.6415]
[1740738751652,4.66e-06,130.95,130.94,7.6415]
[1740738752350,4.66e-06,130.97,130.94,3.82]
[1740738752545,4.66e-06,130.97,130.96,7.6403]
[1740738753548,0.05654423,130.98,130.97,7.6397]
[1740738753747,45.93183932,131.06,130.95,0.05393109]
[1740738753947,45.93183932,131.06,130.92,131.74492038]
[1740738754352,53.56643932,131.06,131.02,7.6367]
[1740738754552,53.56643932,131.06,130.94,12.64]
[1740738754751,7.6351,131.05,130.94,143.38162038]
[1740738755053,0.0549585,131.01,130.99,0.05537836]
[1740738757257,0.0549585,131.01,130.88,157.2891]
[1740738757258,0.0549585,131.01,130.88,130.74162038]
[1740738757455,12.64,131.03,130.88,130.74162038]
[1740738758354,7.6414,130.95,130.94,0.05732929]
[1740738758554,7.6414,130.95,130.88,172.83636493]
[1740738758854,7.70020422,130.93,130.9,0.04818612]
[1740738759053,7.6421,130.93,130.88,42.09474455]
[1740738759362,7.69096222,130.93,130.9,0.0504578]
[1740738760758,0.04886222,130.93,130.9,0.0504578]
[1740738764762,0.04886222,130.93,130.9,7.6942578]
[1740738769765,0.04886222,130.93,130.91,7.6432]
[1740738770661,0.04886222,130.93,130.9,0.0504578]
[1740738770963,0.04886222,130.93,130.92,7.6426]
[1740738771367,0.04886222,130.93,130.91,7.6429]
[1740738772364,0.04886222,130.93,130.9,7.6939578]
[1740738772668,7.69126222,130.93,130.9,0.0504578]
[1740738772968,0.04886222,130.93,130.87,7.6452]
[1740738774163,7.6435,130.91,130.87,7.6452]
[1740738774370,7.6435,130.91,130.89,0.05454143]
[1740738774570,0.05285991,130.9,130.89,0.05454143]
[1740738776271,0.05285991,130.9,130.85,0.80751381]
[1740738776666,12.64,130.89,130.8,42.09474455]
[1740738776870,7.6469,130.85,130.81,7.6489]
[1740738777066,2.0162,130.88,130.8,42.09474455]
[1740738777261,2.0162,130.88,130.81,7.649]
[1740738777467,0.05290963,130.85,130.83,0.04863078]
[1740738779174,0.05290963,130.85,130.76,62.76352929]
[1740738779372,1.8694,130.87,130.76,62.76352929]
[1740738779874,7.6491,130.81,130.76,62.76352929]
[1740738780275,12.64,130.82,130.76,62.76352929]
[1740738780475,0.04953313,130.8,130.77,0.04829877]
[1740738782174,0.04953313,130.8,130.77,7.69969877]
[1740738782374,0.04953313,130.8,130.77,0.04829877]
[1740738785068,0.04953313,130.8,130.77,7.69959877]
[1740738785973,0.04953313,130.8,130.78,7.6507]
[1740738786176,0.04953313,130.8,130.77,0.04829877]
[1740738786580,0.04953313,130.8,130.78,7.6508]
[1740738786880,0.04953313,130.8,130.77,0.04829877]
[1740738787079,0.04953313,130.8,130.79,7.6502]
[1740738788680,0.04953313,130.8,130.77,0.04829877]
[1740738789580,0.04953313,130.8,130.77,7.69959877]
[1740738792378,0.04953313,130.8,130.77,0.04829877]
[1740738792580,0.04953313,130.8,130.78,7.6508]
[1740738793681,0.04953313,130.8,130.79,7.6502]
[1740738797382,3.313e-05,130.8,130.79,7.6502]
[1740738798278,1.9278,130.87,130.77,0.04829877]
[1740738798482,1.9278,130.87,130.75,3.8806]
[1740738798683,5.7846,130.92,130.75,3.8806]
[1740738798884,18.4246,130.92,130.75,3.8806]
[1740738799380,0.05851255,130.85,130.82,0.04978464]
[1740738799583,7.6446,130.89,130.75,134.62222038]
[1740738799781,0.05119836,130.85,130.82,0.05094057]
[1740738800379,5.7846,130.92,130.82,0.05094057]
[1740738800582,3.8765,130.92,130.82,130.74162038]
[1740738800779,12.64,130.95,130.83,1.91]
[1740738800985,12.64,130.95,130.92,7.6425]
[1740738801680,12.6951763,130.95,130.92,7.69858031]
[1740738802081,12.6951763,130.95,130.92,0.05608031]
[1740738802279,0.0551763,130.95,130.92,0.05608031]
[1740738802678,0.0551763,130.95,130.94,7.6415]
[1740738803577,0.0551763,130.95,130.93,7.6418]
[1740738804481,0.0551763,130.95,130.94,7.6415]
[1740738807184,0.0551763,130.95,130.93,7.6418]
[1740738809992,0.0551763,130.95,130.92,0.05608031]
[1740738810797,7.6416,130.94,130.92,0.05608031]
[1740738811394,7.6962763,130.95,130.92,0.05608031]
[1740738811595,0.0551763,130.95,130.92,0.05608031]
[1740738811796,0.0551763,130.95,130.92,7.69848031]
[1740738811993,0.0551763,130.95,130.92,0.05608031]
[1740738812590,0.0551763,130.95,130.93,7.6417]
[1740738812791,0.0551763,130.95,130.92,0.05608031]
[1740738813195,0.0551763,130.95,130.93,7.642]
[1740738813897,0.0551763,130.95,130.92,0.05608031]
[1740738815099,7.6419,130.94,130.92,0.05608031]
[1740738815896,7.642,130.93,130.92,0.05608031]
[1740738816394,7.6426,130.92,130.85,209.8987]
[1740738816591,7.6426,130.92,130.88,7.6446]
[1740738816791,7.6426,130.92,130.85,209.8987]
[1740738817396,0.04859447,130.9,130.85,209.8987]
[1740738817595,0.04859447,130.9,130.87,0.05582831]
[1740738817795,0.04859447,130.9,130.88,7.645]
[1740738818095,0.04859447,130.9,130.87,0.05582831]
[1740738818298,9.447e-05,130.9,130.89,7.6444]
[1740738819393,9.447e-05,130.9,130.89,13.3901]
[1740738820400,9.447e-05,130.9,130.89,9.5701]
[1740738821402,9.447e-05,130.9,130.89,13.3901]
[1740738821696,9.447e-05,130.9,130.89,7.6444]
[1740738821893,9.447e-05,130.9,130.87,0.05582831]
[1740738823796,7.64429447,130.9,130.87,0.05582831]
[1740738823993,9.447e-05,130.9,130.87,0.05582831]
[1740738826102,9.447e-05,130.9,130.87,7.70122831]
[1740738827102,9.447e-05,130.9,130.87,0.05582831]
[1740738827799,9.447e-05,130.9,130.88,7.6449]
[1740738828503,9.447e-05,130.9,130.89,7.6444]
[1740738832008,9.447e-05,130.9,130.87,0.05582831]
[1740738832203,9.447e-05,130.9,130.87,7.70112831]
[1740738833507,7.64399447,130.9,130.87,7.70112831]
[1740738834203,7.645,130.88,130.87,0.05582831]
[1740738834799,7.6446,130.89,130.87,0.05582831]
[1740738837113,9.447e-05,130.9,130.87,0.05582831]
[1740738837317,9.447e-05,130.9,130.87,7.70132831]
[1740738838512,7.64389447,130.9,130.87,7.70132831]
[1740738839612,7.6444,130.89,130.87,0.05582831]
[1740738840117,9.447e-05,130.9,130.87,0.05582831]
[1740738840715,7.645,130.88,130.87,0.05582831]
[1740738841317,7.6463,130.86,130.8,1.9307]
[1740738842413,0.0582995,130.84,130.82,7.69833228]
[1740738843707,0.0582995,130.84,130.82,0.05023228]
[1740738844107,7.6479,130.83,130.82,0.05023228]
[1740738845613,0.0582995,130.84,130.82,0.05023228]
[1740738845819,7.7057995,130.84,130.82,0.05023228]
[1740738846012,0.0582995,130.84,130.82,0.05023228]
[1740738848219,0.0582995,130.84,130.83,7.6479]
[1740738851717,9.95e-05,130.84,130.83,7.6479]
[1740738864629,9.95e-05,130.84,130.82,0.05023228]
[1740738865233,7.6479,130.83,130.77,130.74162038]
[1740738865430,7.6479,130.83,130.76,209.9346]
[1740738865631,7.6479,130.83,130.79,7.6499]
[1740738865938,7.6491,130.81,130.75,140.11302405]
[1740738866135,2.009,130.83,130.75,140.11302405]
[1740738866332,2.009,130.83,130.74,11.77913809]
[1740738866532,0.05223504,130.8,130.78,0.05446134]
[1740738869037,0.05223504,130.8,130.79,7.6502]
[1740738871537,3.504e-05,130.8,130.79,7.6502]
[1740738871735,7.6457,130.87,130.82,7.6483]
[1740738871935,4.0104,130.88,130.75,1.9867]
[1740738872135,7.6461,130.86,130.8,7.6492]
[1740738872539,7.6461,130.86,130.76,1.9095]
[1740738872930,0.05162131,130.82,130.8,0.05377777]
[1740738875332,0.05162131,130.82,130.76,7.6518]
[1740738875533,4.0104,130.88,130.76,7.6518]
[1740738875737,7.6498,130.8,130.76,7.6518]
[1740738876537,0.04973396,130.79,130.77,0.05337103]
[1740738878042,0.04973396,130.79,130.77,7.70467103]
[1740738879046,0.04973396,130.79,130.78,7.6508]
[1740738880844,3.396e-05,130.79,130.78,7.6508]
[1740738887346,3.396e-05,130.79,130.77,0.05337103]
[1740738890453,3.396e-05,130.79,130.77,7.70437103]
[1740738891155,3.396e-05,130.79,130.78,7.6508]
[1740738891357,3.396e-05,130.79,130.77,0.05337103]
[1740738891757,3.396e-05,130.79,130.77,7.70447103]
[1740738892059,3.396e-05,130.79,130.77,0.05337103]
[1740738893357,3.396e-05,130.79,130.77,7.70427103]
[1740738894562,3.396e-05,130.79,130.77,0.05337103]
[1740738896461,3.396e-05,130.79,130.77,7.70467103]
[1740738897358,3.396e-05,130.79,130.77,0.05337103]
[1740738897563,3.396e-05,130.79,130.78,7.6508]
[1740738898162,3.396e-05,130.79,130.77,7.70457103]
[1740738899063,3.396e-05,130.79,130.78,7.6508]
[1740738900569,3.396e-05,130.79,130.77,0.05337103]
[1740738901263,3.396e-05,130.79,130.78,7.6508]
[1740738901464,3.396e-05,130.79,130.77,0.05337103]
[1740738901967,3.396e-05,130.79,130.78,7.6508]
[1740738902457,3.396e-05,130.79,130.77,7.70447103]
[1740738902662,3.396e-05,130.79,130.77,0.05337103]
[1740738903559,3.82003396,130.79,130.7,7.6551]
[1740738903763,160.37286317,130.8,130.68,42.09474455]
[1740738904166,160.37286317,130.8,130.69,7.6556]
[1740738904468,160.37286317,130.8,130.68,42.09474455]
[1740738904663,7.6548,130.72,130.68,49.75124455]
[1740738905063,16.5656,130.75,130.69,0.05047694]
[1740738905269,0.04824646,130.71,130.69,0.05047694]
[1740738905671,0.04824646,130.71,130.69,7.70617694]
[1740738905865,0.04824646,130.71,130.69,0.05047694]
[1740738908572,0.04824646,130.71,130.7,7.6555]
[1740738908969,0.04824646,130.71,130.69,0.05047694]
[1740738909169,0.04824646,130.71,130.7,7.6555]
[1740738909373,0.04824646,130.71,130.69,0.05047694]
[1740738909670,0.04824646,130.71,130.69,7.70657694]
[1740738909869,0.04824646,130.71,130.69,0.05047694]
[1740738910774,0.04824646,130.71,130.69,7.70607694]
[1740738911071,0.04824646,130.71,130.69,0.05047694]
[1740738911274,4.646e-05,130.71,130.69,0.05047694]
[1740738911776,4.646e-05,130.71,130.7,7.6555]
[1740738912272,4.646e-05,130.73,130.69,0.05047694]
[1740738912473,1.9441,130.79,130.69,0.05047694]
[1740738912773,10.55810983,130.81,130.65,1.40644207]
[1740738913167,10.55810983,130.81,130.66,1.857]
[1740738913568,0.05222478,130.75,130.72,7.7066815]
[1740738913967,7.6509,130.78,130.72,7.6537]
[1740738914172,0.0571932,130.75,130.73,7.6533]
[1740738914476,10.55810983,130.81,130.73,7.6533]
[1740738914778,0.05186021,130.75,130.73,7.70244744]
[1740738914976,7.6513,130.78,130.72,7.6542]
[1740738915169,0.05760276,130.75,130.73,0.05132853]
[1740738915979,7.6539,130.73,130.68,7.6565]
[1740738916175,7.6539,130.73,130.61,42.09474455]
[1740738916380,2.0294,130.74,130.63,1.8791]
[1740738916582,7.6548,130.72,130.66,7.6573]
[1740738916779,2.0294,130.74,130.66,7.6573]
[1740738917279,0.05287172,130.71,130.69,0.05127345]
[1740738917880,7.70817172,130.71,130.69,0.05127345]
[1740738918377,7.6555,130.7,130.6,208.06]
[1740738918675,12.62,130.69,130.59,42.09474455]
[1740738918878,1.8665,130.68,130.59,39.04504455]
[1740738919175,214.7865,130.68,130.59,39.04504455]
[1740738919386,191.8665,130.68,130.59,39.04504455]
[1740738919584,7.6596,130.63,130.62,0.05649096]
[1740738920373,7.6591,130.64,130.57,7.663]
[1740738920577,0.05449583,130.65,130.57,7.663]
[1740738920778,12.62,130.66,130.54,39.04504455]
[1740738921486,0.05564868,130.61,130.59,0.0506571]
[1740738921880,1.8665,130.68,130.59,0.0506571]
[1740738922183,1.8665,130.68,130.54,39.04504455]
[1740738922487,0.04816225,130.65,130.62,0.05242095]
[1740738922783,0.0536754,130.65,130.63,7.6596]
[1740738923180,0.0536754,130.65,130.62,0.05242095]
[1740738923380,0.0536754,130.65,130.64,7.659]
[1740738923583,0.0536754,130.65,130.62,0.05242095]
[1740738924090,0.0536754,130.65,130.64,7.659]
[1740738924788,11.09,130.69,130.62,0.05242095]
[1740738925991,5.377e-05,130.67,130.62,0.05242095]
[1740738926194,5.377e-05,130.67,130.62,130.79404133]
[1740738926399,2.0083,130.76,130.62,134.56162038]
[1740738926585,2.0083,130.76,130.72,7.6539]
[1740738926783,2.0083,130.76,130.59,142.22224236]
[1740738926988,2.0083,130.76,130.6,1.40684718]
[1740738927188,2.0083,130.76,130.69,7.656]
[1740738927390,2.0083,130.76,130.66,0.05257003]
[1740738927603,0.05764708,130.74,130.6,130.74162038]
[1740738927785,2.0083,130.76,130.7,0.05673053]
[1740738927984,2.0083,130.76,130.6,130.74162038]
[1740738928488,0.05435201,130.69,130.67,0.04961909]
[1740738928689,2.0083,130.76,130.6,130.74162038]
[1740738928889,2.0083,130.76,130.69,7.656]
[1740738929194,9.12,130.75,130.69,7.656]
[1740738929389,7.70960526,130.74,130.71,0.05859945]
[1740738929591,9.12,130.75,130.59,142.22224236]
[1740738929792,9.12,130.75,130.71,0.05640833]
[1740738930094,0.04956346,130.74,130.71,0.05640833]
[1740738931495,7.6541,130.73,130.71,0.05640833]
[1740738931695,0.04956346,130.74,130.71,0.05640833]
[1740738932800,0.04956346,130.74,130.71,7.71120833]
[1740738933100,0.04956346,130.74,130.71,0.05640833]
[1740738934189,0.04956346,130.74,130.73,7.6537]
[1740738936795,0.04956346,130.74,130.72,1.9334]
[1740738937494,7.70306346,130.74,130.71,0.05640833]
[1740738937700,0.04956346,130.74,130.71,0.05640833]
[1740738938201,7.6538,130.73,130.71,0.05640833]
[1740738938894,0.04956346,130.74,130.71,0.05640833]
[1740738939998,7.6537,130.73,130.71,0.05640833]
[1740738940199,0.04956346,130.74,130.71,0.05640833]
[1740738940395,7.6543,130.72,130.71,0.05640833]
[1740738940599,0.04956346,130.74,130.71,0.05640833]
[1740738941301,0.04956346,130.74,130.71,7.71090833]
[1740738941604,0.04956346,130.74,130.71,7.71110833]
[1740738941901,0.04956346,130.74,130.71,0.05640833]
[1740738942093,0.04956346,130.74,130.71,7.71090833]
[1740738942600,0.04956346,130.74,130.71,0.05640833]
[1740738942799,0.04956346,130.74,130.72,7.6539]
[1740738943199,0.04956346,130.74,130.71,0.05640833]
[1740738943401,7.70286346,130.74,130.71,0.05640833]
[1740738944006,7.6539,130.73,130.71,0.05640833]
[1740738944608,0.04956346,130.74,130.71,0.05640833]
[1740738944812,7.6543,130.72,130.71,0.05640833]
[1740738946009,7.6562,130.69,130.66,7.6578]
[1740738946208,7.6562,130.69,130.59,140.24384236]
[1740738946209,7.6562,130.69,130.6,4.0174]
[1740738946399,8.09,130.71,130.6,4.0174]
[1740738947111,8.09,130.71,130.68,7.6562]
[1740738947309,8.09,130.71,130.66,0.04930344]
[1740738947509,0.0567688,130.68,130.66,0.04930344]
[1740738947905,6.88e-05,130.68,130.67,7.6573]
[1740738948411,6.88e-05,130.68,130.67,9.5471]
[1740738951007,6.88e-05,130.68,130.66,0.04930344]
[1740738955302,7.6573,130.67,130.66,0.04930344]
[1740738956611,7.6568688,130.68,130.66,0.04930344]
[1740738958109,6.88e-05,130.68,130.66,7.70710344]
[1740738958408,6.88e-05,130.68,130.66,0.04930344]
[1740738959115,6.88e-05,130.68,130.67,7.6573]
[1740738959311,6.88e-05,130.68,130.66,0.04930344]
[1740738959513,6.88e-05,130.68,130.66,7.70670344]
[1740738959919,6.88e-05,130.68,130.66,0.04930344]
[1740738960619,6.88e-05,130.68,130.67,7.6573]
[1740738961523,6.88e-05,130.68,130.66,0.04930344]
[1740738962213,7.6568688,130.68,130.66,0.04930344]
[1740738962515,6.88e-05,130.68,130.61,1.8441]
[1740738963519,12.62,130.67,130.57,2.76616269]
[1740738963821,16.568,130.67,130.63,0.05840269]
[1740738964222,0.05775169,130.66,130.63,0.05840269]
[1740738964421,0.05775169,130.66,130.56,208.16]
[1740738964625,16.568,130.67,130.56,208.16]
[1740738965518,16.568,130.67,130.6,0.05496541]
[1740738965820,16.568,130.67,130.61,7.6603]
[1740738965821,0.0565717,130.63,130.61,7.6603]
[1740738966216,0.0565717,130.63,130.61,7.71303554]
[1740738968524,0.0565717,130.63,130.62,7.6602]
[1740738969125,0.0565717,130.63,130.61,7.71333554]
[1740738969325,0.0565717,130.63,130.61,0.05273554]
[1740738969528,0.0565717,130.63,130.62,7.6602]
[1740738971323,7.17e-05,130.63,130.62,7.6602]
[1740738972131,7.17e-05,130.63,130.62,13.5718]
[1740738974128,7.17e-05,130.63,130.62,17.3918]
[1740738975730,7.17e-05,130.66,130.65,7.6584]
[1740738976833,7.588e-05,130.67,130.64,0.05644325]
[1740738977028,7.588e-05,130.67,130.66,7.6578]
[1740738986442,7.588e-05,130.67,130.64,0.05644325]
[1740738988045,7.588e-05,130.67,130.64,7.71514325]
[1740738988346,7.588e-05,130.67,130.64,0.05644325]
[1740738989847,7.588e-05,130.67,130.57,1.8512]
[1740738990049,7.6587,130.65,130.6,7.6609]
[1740738990645,12.6,130.7,130.57,1.8512]
[1740738990844,0.0521501,130.64,130.61,0.04977148]
[1740738991044,12.6,130.7,130.57,1.8512]
[1740738991245,0.049162,130.64,130.61,0.05879938]
[1740738991446,12.6,130.7,130.58,1.9462]
[1740738991645,0.04815783,130.64,130.61,0.04936636]
[1740738991844,12.6,130.7,130.58,1.9462]
[1740738992045,0.04944403,130.64,130.61,0.0525043]
[1740738992245,7.6576,130.67,130.58,1.9462]
[1740738992447,0.05752875,130.64,130.61,0.05255082]
[1740738993446,0.05752875,130.64,130.61,7.71295082]
[1740738995357,0.05752875,130.64,130.61,0.05255082]
[1740738995850,0.05752875,130.64,130.63,7.6596]
[1740738998348,2.875e-05,130.64,130.63,7.6596]
[1740738998857,2.875e-05,130.65,130.64,7.659]
[1740739002858,2.875e-05,130.65,130.61,0.05255082]
[1740739003259,7.6601,130.63,130.61,0.05255082]
[1740739003459,3.8389,130.64,130.61,0.05255082]
[1740739003657,0.05221173,130.63,130.61,0.05255082]
[1740739006156,0.05221173,130.63,130.61,7.71325082]
[1740739007060,0.05221173,130.63,130.61,0.05255082]
[1740739008163,7.71191173,130.63,130.61,0.05255082]
[1740739008350,0.05221173,130.63,130.61,0.05255082]
[1740739008750,0.05221173,130.63,130.61,7.71325082]
[1740739009661,0.05221173,130.63,130.61,0.05255082]
[1740739010561,0.05221173,130.63,130.62,7.6602]
[1740739013464,1.173e-05,130.63,130.62,7.6602]
[1740739019064,1.173e-05,130.63,130.61,0.05255082]
[1740739019369,1.173e-05,130.63,130.61,7.71315082]
[1740739019869,1.173e-05,130.63,130.62,7.6602]
[1740739021871,4.048e-05,130.65,130.64,7.659]
[1740739024670,4.048e-05,130.65,130.61,0.05255082]
[1740739025072,4.048e-05,130.65,130.62,7.6597]
[1740739025969,4.048e-05,130.65,130.61,0.05255082]
[1740739026275,6.03734048,130.65,130.53,16.31337242]
[1740739026571,6.03734048,130.65,130.54,7.6647]
[1740739026778,7.6621,130.59,130.54,7.6647]
[1740739027476,0.05554241,130.58,130.55,0.05477961]
[1740739028471,0.05554241,130.58,130.55,7.71907961]
[1740739030177,0.05554241,130.58,130.56,7.6635]
[1740739030679,0.05554241,130.58,130.55,0.05477961]
[1740739032474,0.05554241,130.58,130.57,7.6631]
[1740739032871,0.05554241,130.58,130.55,0.05477961]
[1740739033070,0.05554241,130.58,130.55,7.71867961]
[1740739033378,0.05554241,130.58,130.55,0.05477961]
[1740739033772,0.05554241,130.58,130.55,7.71907961]
[1740739033977,1.90254241,130.58,130.55,7.71907961]
[1740739034178,1.90254241,130.58,130.47,44.00327425]
[1740739034376,3.8812,130.57,130.47,42.11207425]
[1740739035378,11.5445,130.57,130.53,7.6653]
[1740739035578,3.8812,130.57,130.53,7.6653]
[1740739035880,0.05486555,130.56,130.54,7.6648]
[1740739036078,0.05486555,130.56,130.54,0.05453989]
[1740739036279,3.8812,130.57,130.54,0.05453989]
[1740739036481,0.05480236,130.56,130.54,0.05453989]
[1740739037284,0.05480236,130.56,130.44,16.3688]
[1740739037479,0.05480236,130.56,130.44,3.7688]
[1740739037678,3.8812,130.57,130.44,3.7688]
[1740739037880,7.6655,130.53,130.48,7.6679]
[1740739038585,0.05581033,130.52,130.49,0.05560289]
[1740739038782,12.67581033,130.52,130.41,1.8825]
[1740739039082,3.8768,130.51,130.4,10.61377242]
[1740739039285,7.6674,130.5,130.45,7.6699]
[1740739039588,3.8768,130.51,130.4,10.61377242]
[1740739040084,0.05446679,130.47,130.44,0.04893713]
[1740739040684,0.05446679,130.47,130.44,7.71943713]
[1740739040984,0.05446679,130.47,130.44,0.04893713]
[1740739041378,0.05446679,130.47,130.38,44.11487425]
[1740739041581,7.6698,130.46,130.38,44.11487425]
[1740739041781,3.8768,130.51,130.38,44.11487425]
[1740739042194,3.8768,130.51,130.38,42.11207425]
[1740739042384,3.8768,130.51,130.38,49.78627425]
[1740739042589,0.05343482,130.46,130.43,0.05776315]
[1740739042791,12.62,130.45,130.38,36.01047425]
[1740739043094,1.9516,130.44,130.38,36.01047425]
[1740739043388,7.6724,130.42,130.38,36.01047425]
[1740739044085,0.05026835,130.41,130.39,0.05506444]
[1740739045487,0.05026835,130.41,130.39,7.72836444]
[1740739045789,0.05026835,130.41,130.39,0.05506444]
[1740739046887,7.6731,130.4,130.36,7.675]
[1740739047286,1.9516,130.44,130.36,7.675]
[1740739047488,1.9516,130.44,130.31,1.9672]
[1740739047795,14.5916,130.44,130.31,1.9672]
[1740739047987,1.9516,130.44,130.31,132.70882038]
[1740739048186,5.686e-05,130.39,130.38,7.6743]
[1740739048498,1.9516,130.44,130.31,132.70882038]
[1740739048795,1.9516,130.44,130.41,7.6723]
[1740739049193,1.9516,130.44,130.31,132.70882038]
[1740739049489,3.8905,130.44,130.31,1.9672]
[1740739049691,3.8905,130.44,130.3,100.0]
[1740739049990,0.04881108,130.39,130.36,9.486e-05]
[1740739050194,7.6784,130.31,130.3,100.0]
[1740739050392,20.5584,130.31,130.3,100.0]
[1740739050783,12.88,130.31,130.3,100.0]
[1740739051290,20.5584,130.31,130.3,100.0]
[1740739051492,24.3984,130.31,130.3,81.7039]
[1740739051693,24.3984,130.31,130.3,12.55949831]
[1740739052087,20.5584,130.31,130.3,12.55949831]
[1740739052286,24.3984,130.31,130.3,10.64689831]
[1740739052483,12.88,130.31,130.3,10.64689831]
[1740739053088,0.05554628,130.32,130.3,10.64689831]
[1740739055497,7.6784,130.31,130.3,10.64689831]
[1740739063599,7.73354628,130.32,130.3,10.64689831]
[1740739063800,190.0,130.41,130.31,7.6784]
[1740739064004,7.6758,130.36,130.31,3.957]
[1740739064601,7.6751,130.37,130.31,3.957]
[1740739064803,13.24,130.39,130.31,3.957]
[1740739065000,7.6767,130.34,130.31,3.957]
[1740739065305,13.24,130.39,130.33,0.05378455]
[1740739065710,7.6762,130.35,130.33,0.05378455]
[1740739065912,13.24,130.39,130.33,0.05378455]
[1740739066414,0.05114213,130.37,130.33,0.05378455]
[1740739069408,13.22,130.42,130.33,0.05378455]